[Event "EYCC Open U14 2018"]
[Site "Riga"]
[Date "2018.08.26"]
[Round "6"]
[White "Gines Esteo, Pedro Antonio"]
[Black "Kochavi, Ori"]
[Result "0-1"]
[ECO "A48"]
[WhiteElo "2336"]
[BlackElo "2138"]
[Annotator "NA"]
[PlyCount "180"]
[EventDate "2018.08.20"]
[EventType "swiss"]
[EventCountry "LAT"]
[SourceTitle "playchess.com"]
[Source "ChessBase"]
[SourceQuality "1"]
[TimeControl "40/5400+30:1800+30"]

1. d4 {[%emt 0:00:00]} Nf6 {[%emt 0:00:00]} 2. Nf3 {[%emt 0:00:00]} g6 {[%emt 0:00:00]} 3. Bg5 {[%emt 0:00:14]} Bg7 {[%emt 0:00:00]} 4. Nbd2 {[%emt 0:00:06]} c5 {[%emt 0:00:00]} 5. c3 {[%emt 0:10:35]} cxd4 {[%emt 0:01:52]} 6. cxd4 {[%emt 0:00:07]} O-O {[%emt 0:00:32]} 7. e3 {[%emt 0:00:51] A48: 1 d4 Nf6 2 Nf3 g6: Torre, London and Colle Systems} Nc6 {[%emt 0:00:06]} (7... Qb6 8. Nc4 Qb4+ 9. Qd2 Nc6 10. Rc1 Qxd2+ 11. Ncxd2 d6 12. h3 Bd7 13. Be2 Rfc8 14. a3 h6 {½-½ (70) Zeng,C (2540)-Bai,J (2579) China 2018}) 8. Be2 {[%emt 0:03:29]} d6 {[%emt 0:00:07]} 9. O-O {[%emt 0:00:16]} h6 {[%emt 0:20:26]} 10. Bh4 {[%emt 0:01:04]} e5 {[%emt 0:05:52]} 11. Nc4 {[%emt 0:04:06]} Qe7 $146 {[%emt 0:02:59]} ({Predecessor:} 11... e4 12. Nfd2 Re8 13. Bg3 Bf8 14. Nb1 b5 {1-0 (43) Rozhko,D (2329)-Vorobjov,D (2171) Voronezh 2014}) 12. dxe5 {[%emt 0:05:06]} dxe5 {[%emt 0:00:04]} 13. Qd6 {[%emt 0:01:06]} Qxd6 {[%emt 0:01:17]} 14. Nxd6 {[%emt 0:00:07]} Ne8 {[%emt 0:08:25]} 15. Nxc8 {[%emt 0:11:30]} Rxc8 {[%emt 0:00:05]} 16. Nd2 {[%emt 0:02:03]} f5 {[%emt 0:12:32]} 17. f3 {[%emt 0:02:51]} Nd6 {[%emt 0:01:48]} 18. Rfd1 {[%emt 0:24:58]} g5 {[%emt 0:10:03]} 19. Bf2 {[%emt 0:02:25]} Rfd8 {[%emt 0:00:07]} 20. Nc4 {[%emt 0:04:34]} Nf7 {[%emt 0:00:07]} 21. Rxd8+ {[%emt 0:09:32]} Ncxd8 {[%emt 0:12:01]} 22. Rd1 {[%emt 0:02:54]} Bf8 {[%emt 0:00:04]} 23. g4 {[%emt 0:03:54]} fxg4 {[%emt 0:01:10]} 24. fxg4 {[%emt 0:00:00]} b5 {[%emt 0:00:58]} 25. Na5 {[%emt 0:01:09]} a6 {[%emt 0:00:38]} 26. Bf3 {[%emt 0:03:07]} Rc7 {[%emt 0:04:17]} 27. Bd5 {[%emt 0:01:31]} Bb4 {[%emt 0:00:57]} 28. Nb3 {[%emt 0:00:41]} Rc2 {[%emt 0:00:07]} 29. a3 {[%emt 0:02:01]} Bd6 {[%emt 0:00:06]} 30. Rd2 {[%emt 0:00:52]} Rc7 {[%emt 0:01:53]} 31. e4 {[%emt 0:00:34]} Kf8 {[%emt 0:00:55]} 32. Bb6 {[%emt 0:00:17]} Rc8 {[%emt 0:00:05]} 33. Rf2 {[%emt 0:02:16]} Ke7 {[%emt 0:00:08]} 34. Kg2 {[%emt 0:01:28]} Rb8 {[%emt 0:01:22]} 35. Ba7 {[%emt 0:00:16]} Rc8 {[%emt 0:00:04]} 36. Bb6 {[%emt 0:00:04]} Rb8 {[%emt 0:00:01]} 37. Be3 {[%emt 0:01:18]} Rc8 {[%emt 0:01:46]} 38. Na5 {[%emt 0:00:13]} Rc7 {[%emt 0:02:10]} 39. Bb6 {[%emt 0:00:18]} Rc1 {[%emt 0:02:21]} 40. Nb7 {[%emt 0:00:00]} Ne6 {[%emt 0:00:00]} 41. Rxf7+ {[%emt 0:13:18]} Kxf7 {[%emt 0:01:21]} 42. Nxd6+ {[%emt 0:01:28]} Kf6 {[%emt 0:00:11]} 43. Ne8+ {[%emt 0:06:40]} Ke7 {[%emt 0:00:07]} 44. Bxe6 {[%emt 0:00:07]} Rc2+ {[%emt 0:00:39]} 45. Bf2 {[%emt 0:05:41]} Kxe8 {[%emt 0:01:08]} (45... Kxe6 $11 {keeps the balance.} 46. b4 Rc4) 46. b4 {[%emt 0:02:24]} Ke7 {[%emt 0:06:54]} 47. Bd5 {[%emt 0:00:20]} Rc3 {[%emt 0:00:07]} 48. Bc5+ {[%emt 0:00:53]} Kf6 {[%emt 0:00:04]} 49. Bf8 {[%emt 0:04:02]} Kg6 {[%emt 0:00:52]} 50. Bd6 {[%emt 0:00:49]} Kf6 {[%emt 0:00:04]} 51. Bb7 {[%emt 0:01:10]} Rxa3 {[%emt 0:00:06]} 52. Bc7 {[%emt 0:00:07]} Ra2+ {[%emt 0:03:39]} 53. Kf3 {[%emt 0:00:25]} Ra3+ {[%emt 0:00:05]} 54. Kf2 {[%emt 0:00:06]} Ra2+ {[%emt 0:00:04]} 55. Ke3 {[%emt 0:00:07]} Ra3+ {[%emt 0:00:08]} 56. Ke2 {[%emt 0:00:10]} Ra4 {[%emt 0:01:58]} 57. Ba5 {[%emt 0:00:55]} Ra2+ {[%emt 0:00:04]} 58. Ke3 {[%emt 0:00:05]} Ra3+ {[%emt 0:00:21]} 59. Ke2 {[%emt 0:00:03]} Ra2+ {[%emt 0:00:04]} 60. Kd3 {[%emt 0:00:24]} Ra3+ {[%emt 0:00:06]} 61. Kd2 {[%emt 0:00:44]} Ra2+ {[%emt 0:00:04]} 62. Kc3 {[%emt 0:01:14]} Rxh2 {[%emt 0:00:29]} 63. Bxa6 {[%emt 0:00:53]} Rh3+ {[%emt 0:19:52]} 64. Kd2 {[%emt 0:00:12]} Rg3 {[%emt 0:00:14]} 65. Bxb5 {[%emt 0:00:29]} Rxg4 {[%emt 0:00:08]} 66. Bc6 {[%emt 0:00:48]} Rg2+ {[%emt 0:01:53]} 67. Kc3 {[%emt 0:00:52]} Ke6 {[%emt 0:02:14]} 68. Bc7 {[%emt 0:00:58]} Rg3+ {[%emt 0:00:38]} 69. Kc2 {[%emt 0:00:41]} Rg2+ {[%emt 0:00:14]} 70. Kc3 {[%emt 0:00:07]} Rg3+ {[%emt 0:00:04]} 71. Kd2 {[%emt 0:00:31]} Rg2+ {[%emt 0:00:14]} 72. Ke1 {[%emt 0:00:42]} Rb2 {[%emt 0:01:18]} 73. b5 {[%emt 0:00:01]} h5 {[%emt 0:00:36]} 74. b6 {[%emt 0:00:55]} h4 {[%emt 0:00:10]} 75. Kf1 {[%emt 0:00:38]} h3 {[%emt 0:00:35]} 76. Kg1 {[%emt 0:00:21]} g4 {[%emt 0:01:08]} 77. b7 {[%emt 0:00:37]} Rb1+ {[%emt 0:00:04]} 78. Kh2 {[%emt 0:00:09]} Rb2+ {[%emt 0:00:04]} 79. Kg3 {[%emt 0:00:51]} Rg2+ {[%emt 0:01:57]} 80. Kh4 $11 {[%emt 0:00:02]} h2 {[%emt 0:00:06]} 81. Bd5+ {[%emt 0:01:07]} Kd7 {[%emt 0:00:08]} 82. b8=Q {[%emt 0:00:13]} h1=Q+ {[%emt 0:00:07]} 83. Kg5 {[%emt 0:00:04]} Qc1+ {[%emt 0:00:05]} 84. Kg6 {[%emt 0:00:29]} Qxc7 {[%emt 0:00:38]} 85. Qb5+ {[%emt 0:00:50]} Ke7 {[%emt 0:00:29]} 86. Kg7 {[%emt 0:00:05]} Rf2 {[%emt 0:01:13]} 87. Qb4+ {[%emt 0:00:07]} Kd8+ {[%emt 0:01:00]} 88. Kg8 {[%emt 0:00:07]} Rf6 {[%emt 0:00:35]} 89. Qd2 {[%emt 0:01:09]} Rg6+ {[%emt 0:00:09]} 90. Kf8 {[%emt 0:00:01]} Qg7# {[%emt 0:00:06]} 0-1

[Event "EYCC Open U14 2018"]
[Site "Riga"]
[Date "2018.08.26"]
[Round "6"]
[White "Pogosyan, Stefan"]
[Black "Larkin, Vladislav"]
[Result "1-0"]
[ECO "D11"]
[WhiteElo "2331"]
[BlackElo "2212"]
[Annotator "NA"]
[PlyCount "119"]
[EventDate "2018.08.20"]
[EventType "swiss"]
[EventCountry "LAT"]
[SourceTitle "playchess.com"]
[Source "ChessBase"]
[SourceQuality "1"]
[TimeControl "40/5400+30:1800+30"]

1. d4 {[%emt 0:00:00]} d5 {[%emt 0:00:00]} 2. c4 {[%emt 0:00:00]} c6 {[%emt 0:00:00]} 3. Nf3 {[%emt 0:00:47]} Nf6 {[%emt 0:00:00]} 4. Qc2 {[%emt 0:00:06]} g6 {[%emt 0:00:28]} 5. e3 {[%emt 0:00:49]} Bg7 {[%emt 0:06:57]} 6. Bd3 {[%emt 0:01:05]} O-O {[%emt 0:02:31] D11: Damengambit (Slawische Verteidigung)} (6... e6) 7. O-O {[%emt 0:00:08]} dxc4 {[%emt 0:07:22]} 8. Bxc4 {[%emt 0:02:58]} Bf5 {[%emt 0:01:46]} 9. Qe2 {[%emt 0:00:58]} Nbd7 {[%emt 0:01:31]} 10. Nc3 {[%emt 0:02:15]} Ne4 $146 {[%emt 0:12:53]} ({Vorgänger:} 10... Bg4 11. h3 Bxf3 12. Qxf3 e5 13. Bb3 exd4 14. exd4 {0-1 (39) Bermejo Martinez,J (2215)-Bosque Ortega,X (2282) Benidorm 2007}) 11. Nh4 {[%emt 0:09:51]} Nxc3 {[%emt 0:01:35]} 12. bxc3 {[%emt 0:00:01]} Be4 {[%emt 0:00:58]} 13. Nf3 {[%emt 0:04:07]} Qa5 {[%emt 0:09:39]} 14. Bb2 {[%emt 0:08:20]} Nb6 {[%emt 0:15:40]} 15. Bb3 {[%emt 0:05:25]} Na4 {[%emt 0:05:22]} 16. Nd2 {[%emt 0:07:53]} Bd5 {[%emt 0:06:49]} 17. Bxa4 {[%emt 0:08:05]} Qxa4 {[%emt 0:00:04]} 18. c4 {[%emt 0:10:49]} Be6 {[%emt 0:01:38]} 19. Rfb1 {[%emt 0:00:07]} Rfd8 {[%emt 0:05:42]} 20. Qd3 {[%emt 0:04:38]} b5 {[%emt 0:08:10]} 21. cxb5 {[%emt 0:02:48]} c5 {[%emt 0:01:54]} 22. Nb3 {[%emt 0:09:02]} Bc4 {[%emt 0:05:10]} 23. Nxc5 {[%emt 0:04:37]} Bxd3 {[%emt 0:00:06]} 24. Nxa4 {[%emt 0:00:11]} Bxb1 {[%emt 0:00:03]} 25. Rxb1 {[%emt 0:00:00]} e5 {[%emt 0:00:23]} 26. dxe5 {[%emt 0:00:21]} Rd2 {[%emt 0:00:23]} 27. Bd4 {[%emt 0:03:02]} Rxa2 {[%emt 0:01:17]} 28. Nc3 {[%emt 0:00:26]} Rc2 {[%emt 0:00:42]} 29. Nd5 {[%emt 0:00:35]} Kf8 {[%emt 0:02:36]} 30. f4 {[%emt 0:01:28]} Ke8 {[%emt 0:02:19]} 31. Ra1 {[%emt 0:00:12]} Rd8 {[%emt 0:00:59]} 32. Nb4 {[%emt 0:00:47]} Rc7 {[%emt 0:00:14]} 33. b6 {[%emt 0:01:43]} axb6 {[%emt 0:00:40]} 34. Bxb6 {[%emt 0:00:04]} Rb7 {[%emt 0:00:16]} 35. Bxd8 {[%emt 0:00:04]} Rxb4 {[%emt 0:00:11]} 36. Bc7 {[%emt 0:00:40]} Rb7 {[%emt 0:00:38]} 37. Bd6 {[%emt 0:00:45]} Kd7 {[%emt 0:00:05]} 38. Ra8 {[%emt 0:00:29]} f6 {[%emt 0:00:54]} 39. Rg8 {[%emt 0:02:59]} Ke6 {[%emt 0:00:16]} 40. Bf8 {[%emt 0:00:00]} Bxf8 {[%emt 0:00:00]} 41. Rxf8 {[%emt 0:00:39]} fxe5 {[%emt 0:03:35]} 42. Re8+ {[%emt 0:00:19]} Kf6 {[%emt 0:01:34]} 43. Rxe5 {[%emt 0:00:15]} Rb2 {[%emt 0:00:03]} 44. h3 {[%emt 0:01:14]} h6 {[%emt 0:05:10]} 45. Kh2 {[%emt 0:03:09]} Re2 {[%emt 0:00:06]} 46. Kg3 {[%emt 0:00:11]} g5 {[%emt 0:00:06]} 47. Kf3 {[%emt 0:10:57]} gxf4 {[%emt 0:03:05]} 48. exf4 {[%emt 0:01:30]} Rxe5 {[%emt 0:00:34]} 49. fxe5+ {[%emt 0:00:09]} Kxe5 {[%emt 0:00:01]} 50. Kg4 {[%emt 0:00:01]} Kf6 {[%emt 0:00:08]} 51. Kf4 {[%emt 0:00:10]} Ke6 {[%emt 0:04:25]} 52. g4 {[%emt 0:00:26]} Kf6 {[%emt 0:00:05]} 53. h4 {[%emt 0:00:02]} Ke6 {[%emt 0:03:31]} 54. Ke4 {[%emt 0:00:04]} Kf6 {[%emt 0:00:20]} 55. Kd5 {[%emt 0:00:00]} h5 {[%emt 0:05:00]} 56. g5+ {[%emt 0:00:37]} Ke7 {[%emt 0:00:07]} 57. Ke5 {[%emt 0:00:10]} Kf7 {[%emt 0:00:04]} 58. Kd6 {[%emt 0:00:10]} Kg8 {[%emt 0:05:53]} 59. Ke6 {[%emt 0:00:09]} Kg7 {[%emt 0:00:33]} 60. Ke7 {[%emt 0:00:08]} 1-0

[Event "EYCC Open U14 2018"]
[Site "Riga"]
[Date "2018.08.26"]
[Round "6"]
[White "Suleymanli, Aydin Elshan"]
[Black "Prydun, Andriy"]
[Result "1-0"]
[ECO "A00"]
[WhiteElo "2323"]
[BlackElo "2072"]
[Annotator "NA"]
[PlyCount "97"]
[EventDate "2018.08.20"]
[EventType "swiss"]
[EventCountry "LAT"]
[SourceTitle "playchess.com"]
[Source "ChessBase"]
[SourceQuality "1"]
[TimeControl "40/5400+30:1800+30"]

1. b4 {[%emt 0:00:00]} e5 {[%emt 0:00:15]} 2. Bb2 {[%emt 0:00:00]} Bxb4 {[%emt 0:00:03]} 3. Bxe5 {[%emt 0:00:00]} Nf6 {[%emt 0:00:04]} 4. Nf3 {[%emt 0:00:00]} O-O {[%emt 0:04:27]} 5. e3 {[%emt 0:09:36]} d5 {[%emt 0:11:27]} 6. Be2 {[%emt 0:04:24]} Re8 {[%emt 0:04:35] A00: Unregelmäßige Eröffnungen} 7. O-O {[%emt 0:00:58]} Bd6 {[%emt 0:00:07]} (7... c5 8. Bb2 Nc6 9. d3 Bg4 10. h3 Bh5 11. Nbd2 Ba5 12. c4 dxc4 13. Nxc4 Bc7 {0-1 (33) Ivanchuk,V (2753)-Giri,A (2734) Leon 2013}) 8. Bb2 {[%emt 0:08:05]} Bg4 {[%emt 0:18:14]} 9. d3 {[%emt 0:03:18]} Nbd7 {[%emt 0:00:54]} 10. Nbd2 {[%emt 0:00:07]} a5 $146 {[%emt 0:03:56]} ({Vorgänger:} 10... c6 11. c4 Qc7 12. h3 Bxf3 13. Bxf3 Ne5 14. cxd5 cxd5 15. Qb3 {½-½ (15) Chirpii,A (1878)-Zakharov,A (2329) Vienna 2015}) 11. c4 {[%emt 0:02:27]} a4 {[%emt 0:03:22]} 12. Rb1 {[%emt 0:02:19]} b6 {[%emt 0:04:54]} 13. cxd5 {[%emt 0:02:32]} Nxd5 {[%emt 0:00:04]} 14. Nc4 {[%emt 0:00:12]} Bf8 {[%emt 0:00:48]} 15. h3 {[%emt 0:05:40]} Bh5 {[%emt 0:00:14]} 16. Ba1 {[%emt 0:04:02]} c6 {[%emt 0:02:41]} 17. Nfe5 {[%emt 0:12:42]} Bxe2 {[%emt 0:01:10]} 18. Qxe2 {[%emt 0:00:05]} Nxe5 {[%emt 0:00:19]} 19. Nxe5 {[%emt 0:00:06]} Qc7 {[%emt 0:02:48]} 20. d4 {[%emt 0:00:24]} f6 {[%emt 0:03:35]} 21. Nf3 {[%emt 0:10:12]} Re6 {[%emt 0:13:09]} 22. Rfc1 {[%emt 0:01:19]} Bb4 {[%emt 0:03:16]} 23. Qc4 {[%emt 0:07:51]} Qe7 {[%emt 0:05:28]} 24. Rc2 {[%emt 0:17:21]} Rd8 {[%emt 0:07:13]} 25. Bb2 {[%emt 0:07:50]} b5 {[%emt 0:01:50]} 26. Qd3 {[%emt 0:00:02]} a3 {[%emt 0:05:13]} 27. Bc1 {[%emt 0:00:17]} c5 {[%emt 0:00:40]} 28. Qxb5 {[%emt 0:00:52]} Nc3 {[%emt 0:00:32]} 29. Rxc3 {[%emt 0:00:41]} Bxc3 {[%emt 0:00:06]} 30. Bxa3 {[%emt 0:00:53]} Bb4 {[%emt 0:01:22]} 31. Bxb4 {[%emt 0:00:20]} cxb4 {[%emt 0:00:05]} 32. Rxb4 {[%emt 0:00:30]} Qd7 {[%emt 0:01:33]} 33. Qc4 {[%emt 0:00:53]} Qd5 {[%emt 0:00:03]} 34. Qc2 {[%emt 0:00:29]} Ra6 {[%emt 0:01:18]} 35. Rc4 {[%emt 0:00:30]} Qa5 {[%emt 0:01:12]} 36. a4 {[%emt 0:00:16]} Rda8 {[%emt 0:00:29]} 37. Rc8+ {[%emt 0:00:34]} Rxc8 {[%emt 0:00:05]} 38. Qxc8+ {[%emt 0:00:02]} Kf7 {[%emt 0:00:03]} 39. Qd7+ {[%emt 0:01:05]} Kf8 {[%emt 0:00:04]} 40. d5 {[%emt 0:00:00]} Qxa4 {[%emt 0:00:00]} 41. Qc8+ {[%emt 0:01:21]} Kf7 {[%emt 0:02:24]} 42. Qc7+ {[%emt 0:16:33]} Kg8 $16 {[%emt 0:00:16]} 43. Nd4 {[%emt 0:01:30]} Qe8 {[%emt 0:09:28]} 44. d6 {[%emt 0:09:32]} Ra1+ {[%emt 0:06:02]} 45. Kh2 {[%emt 0:00:03]} Qe5+ {[%emt 0:00:07]} 46. f4 {[%emt 0:00:14]} Qxe3 {[%emt 0:00:33]} 47. Qc4+ {[%emt 0:00:09]} Kf8 {[%emt 0:00:06]} 48. Ne6+ {[%emt 0:00:06]} Kf7 {[%emt 0:00:20]} 49. Qc7+ {[%emt 0:00:08]} 1-0

[Event "EYCC Open U14 2018"]
[Site "Riga"]
[Date "2018.08.26"]
[Round "6"]
[White "Ognean, Mihnea Ionut"]
[Black "Kirillov, Dmitry"]
[Result "1-0"]
[ECO "D27"]
[WhiteElo "2293"]
[BlackElo "2209"]
[Annotator "NA"]
[PlyCount "57"]
[EventDate "2018.08.20"]
[EventType "swiss"]
[EventCountry "LAT"]
[SourceTitle "playchess.com"]
[Source "ChessBase"]
[SourceQuality "1"]
[TimeControl "40/5400+30:1800+30"]

1. d4 {[%emt 0:00:00]} d5 {[%emt 0:00:00]} 2. c4 {[%emt 0:00:00]} dxc4 {[%emt 0:00:00]} 3. e3 {[%emt 0:00:00]} Nf6 {[%emt 0:00:00]} 4. Bxc4 {[%emt 0:00:04]} e6 {[%emt 0:00:00]} 5. Nf3 {[%emt 0:00:59]} c5 {[%emt 0:00:00]} 6. O-O {[%emt 0:00:12]} a6 {[%emt 0:00:00]} 7. a4 {[%emt 0:00:11]} Nc6 {[%emt 0:00:02]} 8. Qe2 {[%emt 0:00:13]} cxd4 {[%emt 0:00:10]} 9. Rd1 {[%emt 0:00:12]} Be7 {[%emt 0:00:23]} 10. exd4 {[%emt 0:00:27]} O-O {[%emt 0:00:11]} 11. Nc3 {[%emt 0:00:47]} Nb4 {[%emt 0:00:30]} 12. Ne5 {[%emt 0:01:08]} b6 {[%emt 0:01:39]} 13. Bg5 {[%emt 0:06:50] D27: Queen's Gambit Accepted: Classical main line: 7 e4!? and 7 a4} Bb7 {[%emt 0:00:43]} 14. Re1 {[%emt 0:23:15]} Nfd5 {[%emt 0:02:27]} 15. Bxe7 {[%emt 0:04:39]} Qxe7 {[%emt 0:00:48]} 16. Nxd5 $146 {[%emt 0:05:47]} ({Predecessor:} 16. Rac1 Nf4 17. Qg4 Nxg2 18. Re4 f5 19. Qxg2 fxe4 20. Re1 Rad8 21. Nxe4 Rxd4 22. Qg4 Rxc4 23. Nxc4 Nd3 24. Re2 Rf4 25. Qg2 Nxf2 26. Rxf2 Rxe4 {0-1 (26) Bimiev,A (2076)-Ladva,O (2513) St Petersburg 2016}) 16... Nxd5 {[%emt 0:01:36]} 17. Ra3 {[%emt 0:04:00]} Rfd8 {[%emt 0:28:18]} 18. Rg3 {[%emt 0:05:52]} Nf6 {[%emt 0:04:51]} 19. Qe3 {[%emt 0:03:43]} Ne4 {[%emt 0:08:09]} 20. Rh3 {[%emt 0:11:40]} Qd6 $2 {[%emt 0:04:59] [#]} (20... Qb4 $11 {and Black stays safe.}) 21. Qf4 $1 {[%emt 0:07:31]} Nf6 {[%emt 0:16:51]} 22. Rg3 {[%emt 0:00:35]} Kf8 {[%emt 0:01:39]} 23. Rxg7 {[%emt 0:01:23]} Kxg7 {[%emt 0:00:15]} 24. Qg5+ {[%emt 0:00:03]} Kf8 {[%emt 0:00:37]} 25. Qxf6 {[%emt 0:00:05]} Qc7 {[%emt 0:02:04]} 26. Bxe6 {[%emt 0:01:16]} Rd6 {[%emt 0:01:37]} 27. Nd7+ $18 {[%emt 0:02:36]} (27. Qh6+ $142 Kg8 28. Qg5+ Kf8 29. Bxf7) 27... Rxd7 {[%emt 0:00:21]} 28. Qh8+ {[%emt 0:00:57]} Ke7 {[%emt 0:00:12]} 29. Bd5+ {[%emt 0:00:04]} 1-0

[Event "EYCC Open U14 2018"]
[Site "Riga"]
[Date "2018.08.26"]
[Round "6"]
[White "Czopor, Maciej"]
[Black "Patrelakis, Evaggelos"]
[Result "1-0"]
[ECO "B90"]
[WhiteElo "2220"]
[BlackElo "2235"]
[Annotator "NA"]
[PlyCount "39"]
[EventDate "2018.08.20"]
[EventType "swiss"]
[EventCountry "LAT"]
[SourceTitle "playchess.com"]
[Source "ChessBase"]
[SourceQuality "1"]
[TimeControl "40/5400+30:1800+30"]

1. e4 {[%emt 0:00:00]} c5 {[%emt 0:00:00]} 2. Nf3 {[%emt 0:00:00]} d6 {[%emt 0:00:00]} 3. d4 {[%emt 0:00:00]} cxd4 {[%emt 0:00:00]} 4. Nxd4 {[%emt 0:00:06]} Nf6 {[%emt 0:00:02]} 5. Nc3 {[%emt 0:00:12]} a6 {[%emt 0:00:06]} 6. Be3 {[%emt 0:00:18]} e6 {[%emt 0:00:08]} 7. g4 {[%emt 0:00:23]} e5 {[%emt 0:00:16]} 8. Nf5 {[%emt 0:00:28]} g6 {[%emt 0:00:20]} 9. Bg2 {[%emt 0:10:09]} gxf5 {[%emt 0:03:00] B81: Sicilian Scheveningen: Keres Attack} 10. exf5 {[%emt 0:00:04]} h5 {[%emt 0:24:24] LiveBook: 5 Games} 11. h3 {[%emt 0:17:27]} hxg4 {[%emt 0:13:17]} (11... d5 12. Qe2 hxg4 13. hxg4 Rxh1+ 14. Bxh1 d4 15. O-O-O Qe7 16. Na4 Nbd7 17. Bg5 {0-1 (38) Stukopin,A (2600)-Huschenbeth,N (2575) Greensboro 2017}) 12. hxg4 {[%emt 0:00:13]} Rxh1+ {[%emt 0:00:12]} 13. Bxh1 {[%emt 0:00:06]} Qa5 {[%emt 0:14:16]} (13... d5 $11 {keeps the balance.} 14. Nxd5 Nxd5 15. Qxd5 Qxd5 16. Bxd5 f6) 14. g5 {[%emt 0:07:34]} Nfd7 $146 {[%emt 0:05:46]} ({Predecessor:} 14... d5 15. gxf6 d4 16. Bxd4 exd4 17. Qxd4 {½-½ (42) Forsaa,E (2301)-Bindrich,O (2173) Caleta 2010}) 15. Qh5 {[%emt 0:12:03]} Nc6 {[%emt 0:11:05]} 16. Bd5 {[%emt 0:06:57]} Nd8 $18 {[%emt 0:04:21]} 17. g6 {[%emt 0:12:45]} Nf6 {[%emt 0:04:12]} 18. Qh8 {[%emt 0:01:11]} fxg6 {[%emt 0:01:39]} 19. fxg6 {[%emt 0:01:19]} Ne6 {[%emt 0:09:01]} 20. Qxf6 {[%emt 0:02:26]} 1-0

[Event "EYCC Open U14 2018"]
[Site "Riga"]
[Date "2018.08.26"]
[Round "6"]
[White "Boyer, Mahel"]
[Black "Karacsonyi, Gellert"]
[Result "1/2-1/2"]
[ECO "E04"]
[WhiteElo "2189"]
[BlackElo "2229"]
[Annotator "NA"]
[PlyCount "61"]
[EventDate "2018.08.20"]
[EventType "swiss"]
[EventCountry "LAT"]
[SourceTitle "playchess.com"]
[Source "ChessBase"]
[SourceQuality "1"]
[TimeControl "40/5400+30:1800+30"]

1. d4 {[%emt 0:00:00]} Nf6 {[%emt 0:00:00]} 2. Nf3 {[%emt 0:00:00]} d5 {[%emt 0:00:00]} 3. c4 {[%emt 0:00:00]} e6 {[%emt 0:00:00]} 4. g3 {[%emt 0:00:00]} dxc4 {[%emt 0:00:11]} 5. Bg2 {[%emt 0:11:53]} Bd7 {[%emt 0:00:08]} 6. O-O {[%emt 0:12:13]} Bc6 {[%emt 0:18:18]} 7. Qc2 {[%emt 0:04:58]} Be7 {[%emt 0:00:18]} 8. Qxc4 {[%emt 0:10:58]} O-O {[%emt 0:01:06]} 9. Nc3 {[%emt 0:04:46]} a6 {[%emt 0:02:08]} 10. a3 {[%emt 0:07:50]} b5 {[%emt 0:01:47]} 11. Qd3 {[%emt 0:00:24]} Nbd7 {[%emt 0:02:48]} 12. Bg5 {[%emt 0:08:51]} Bb7 {[%emt 0:07:37]} 13. Bxf6 {[%emt 0:04:27]} Nxf6 {[%emt 0:01:24]} 14. b4 {[%emt 0:00:24]} Nd5 {[%emt 0:17:51]} 15. Ne5 {[%emt 0:18:07]} Bf6 {[%emt 0:11:09]} 16. Nxd5 {[%emt 0:01:40]} Bxd5 {[%emt 0:06:51]} 17. Nc6 {[%emt 0:06:57]} Bxc6 {[%emt 0:05:37]} 18. Bxc6 {[%emt 0:00:01]} Rb8 {[%emt 0:00:05]} 19. Rfd1 {[%emt 0:00:34]} e5 {[%emt 0:08:02]} 20. dxe5 {[%emt 0:01:23]} Bxe5 {[%emt 0:01:13]} 21. Rac1 {[%emt 0:01:21]} Qf6 {[%emt 0:04:17]} 22. Qb3 {[%emt 0:00:42]} Rbd8 {[%emt 0:02:10]} 23. Rxd8 {[%emt 0:00:32]} Rxd8 {[%emt 0:00:01]} 24. Bf3 {[%emt 0:00:10]} Qe7 {[%emt 0:03:20]} 25. Qe3 {[%emt 0:01:20]} Qe6 {[%emt 0:01:36]} 26. Rc5 {[%emt 0:01:19]} Bb2 {[%emt 0:03:30]} 27. Qg5 {[%emt 0:02:04]} Bf6 {[%emt 0:00:37]} 28. Qc1 {[%emt 0:00:13]} Be5 {[%emt 0:01:10]} 29. Rc6 {[%emt 0:00:25]} Qb3 {[%emt 0:00:31]} 30. Qg5 {[%emt 0:00:45]} f6 {[%emt 0:00:01]} 31. Qe3 {[%emt 0:00:20]} 1/2-1/2

[Event "EYCC Open U14 2018"]
[Site "Riga"]
[Date "2018.08.28"]
[Round "8"]
[White "Bethke, Richard"]
[Black "Kirillov, Dmitry"]
[Result "0-1"]
[ECO "B81"]
[WhiteElo "2240"]
[BlackElo "2209"]
[Annotator "NA RC"]
[PlyCount "74"]
[EventDate "2018.08.20"]
[EventType "swiss"]
[EventCountry "LAT"]
[SourceTitle "playchess.com"]
[Source "ChessBase"]
[SourceQuality "1"]
[TimeControl "40/5400+30:1800+30"]

1. e4 {[%emt 0:00:00]} c5 {[%emt 0:00:00]} 2. Nf3 {[%emt 0:00:00]} e6 {[%emt 0:00:00]} 3. d4 {[%emt 0:00:00]} cxd4 {[%emt 0:00:00]} 4. Nxd4 {[%emt 0:00:00]} Nf6 {[%emt 0:00:00]} 5. Nc3 {[%emt 0:00:01]} d6 {[%emt 0:00:00]} 6. g4 {[%emt 0:00:07]} Nc6 {[%emt 0:00:00]} 7. Rg1 {[%emt 0:00:17] B81: Sicilian Scheveningen: Keres Attack} (7. g5 Nd7 8. Be3 a6 9. h4 Be7 10. Qd2 O-O 11. O-O-O Nxd4 12. Qxd4 b5 13. f4 Rb8 14. h5 b4 15. Ne2 e5 16. Qd2 exf4 17. Bxf4 Qa5 18. Kb1 Nc5 19. Bg2 Bg4 20. h6 g6 21. Qd4 Ne6 22. Qa7 Bxe2 23. Qxe7 Nxf4 24. Rxd6 Bc4 25. Qf6 Qxa2+ 26. Kc1 Qa1+ 27. Kd2 Nh5 28. Rxh5 {1-0 (28) Smeets,J (2647)-Van Wely,L (2675) playchess.com INT 2011}) 7... a6 {[%emt 0:00:23] LiveBook: 5 Games} 8. Be3 {[%emt 0:00:57]} Qc7 {[%emt 0:00:23]} 9. g5 {[%emt 0:01:21]} Nd7 {[%emt 0:00:12]} 10. Qe2 {[%emt 0:04:07]} b5 {[%emt 0:00:32]} 11. O-O-O {[%emt 0:05:30]} Bb7 {[%emt 0:00:24]} 12. Nxc6 $146 {[%emt 0:01:56]} ({Predecessor:} 12. h4 Nce5 13. Kb1 Nc5 14. f4 Nc4 15. Ndxb5 axb5 16. Nxb5 Qa5 17. Qxc4 {1-0 (24) Draganic,V (2294)-Milovic,A (2141) Sozina 2004}) 12... Bxc6 {[%emt 0:01:29]} 13. a3 {[%emt 0:03:10]} Rc8 {[%emt 0:02:21]} 14. f4 {[%emt 0:02:25]} a5 {[%emt 0:01:14]} 15. Nd5 {[%emt 0:01:59]} Qb7 {[%emt 0:06:54]} 16. Bd4 {[%emt 0:06:10]} b4 {[%emt 0:05:04]} 17. axb4 {[%emt 0:00:17]} axb4 {[%emt 0:00:18]} 18. b3 {[%emt 0:02:53]} Kd8 {[%emt 0:19:52]} 19. Ne3 {[%emt 0:07:13]} Bxe4 {[%emt 0:03:15]} 20. Qb5 {[%emt 0:04:16]} (20. Bg2 $11) 20... Qxb5 {[%emt 0:11:11]} 21. Bxb5 {[%emt 0:00:06]} d5 {[%emt 0:00:15]} 22. Kb2 {[%emt 0:02:07]} Bd6 {[%emt 0:12:23]} 23. Bxg7 {[%emt 0:03:59]} Rg8 {[%emt 0:02:23]} 24. Bxd7 {[%emt 0:02:04]} Kxd7 {[%emt 0:00:56]} 25. Be5 {[%emt 0:00:53]} Bxe5+ {[%emt 0:01:52]} 26. fxe5 {[%emt 0:00:08]} Rc3 {[%emt 0:00:17]} 27. Rg3 {[%emt 0:01:25] [#]} h6 $1 {[%emt 0:02:16]} 28. h4 {[%emt 0:03:40]} hxg5 {[%emt 0:02:31]} 29. Rd2 $2 {[%emt 0:08:59]} (29. hxg5 Kc6 30. Rd4) 29... Kc6 {[%emt 0:01:33]} 30. hxg5 {[%emt 0:02:28]} Rh8 {[%emt 0:02:34]} 31. Rf2 {[%emt 0:06:02]} Rh1 {[%emt 0:02:41]} 32. Ka2 {[%emt 0:07:04]} Kb5 $2 {[%emt 0:02:04]} 33. Re2 $1 {[%emt 0:01:06]} Kc5 {[%emt 0:08:05]} (33... Rc8 $142 34. Kb2 Rc3) 34. Rf2 {[%emt 0:03:22]} Kb5 {[%emt 0:02:04]} ({Better is} 34... d4 $19 35. Nf1 Bxc2) 35. Re2 {[%emt 0:01:06]} Ka6 $19 {[%emt 0:00:50]} 36. Rf2 {[%emt 0:08:23]} d4 {[%emt 0:00:41]} 37. Rf4 {[%emt 0:02:13]} dxe3 {[%emt 0:00:39]} 0-1